[Event "XVI Memorial Ezequiel Martin 2024"]
[Site "Mollet"]
[Date "2024.06.09"]
[Round "7.4"]
[White "Valenzuela Gomez, Fernando"]
[Black "Uber Gracia, Hugo"]
[Result "1-0"]
[ECO "B12"]
[WhiteElo "2358"]
[BlackElo "2220"]
[Annotator "RC"]
[PlyCount "83"]
[EventDate "2024.06.01"]
[EventType "swiss"]
[EventCountry "ESP"]
[SourceTitle "playchess.com"]
[Source "ChessBase"]
[SourceQuality "1"]
[TimeControl "900+5"]

1. e4 {[%emt 0:00:01]} c6 {[%emt 0:00:01]} 2. d4 {[%emt 0:00:01]} d5 {[%emt 0:00:01]} 3. e5 {[%emt 0:00:01]} Bf5 {[%emt 0:00:01]} 4. Bd3 {[%emt 0:00:01]} Bxd3 {[%emt 0:00:05]} 5. Qxd3 {[%emt 0:00:01]} e6 {[%emt 0:00:04]} 6. c3 {[%emt 0:00:02]} Ne7 {[%emt 0:00:14]} 7. Ne2 {[%emt 0:15:33]} Nd7 {[%emt 0:00:39]} 8. O-O {[%emt 0:00:00]} Nf5 {[%emt 0:00:06]} 9. Nd2 {[%emt 0:00:00]} Be7 {[%emt 0:00:13]} 10. Nf3 {[%emt 0:00:00]} O-O {[%emt 0:00:11]} 11. g4 {[%emt 0:00:00]} Nh4 {[%emt 0:00:19]} 12. Nxh4 {[%emt 0:00:00]} Bxh4 {[%emt 0:00:02]} 13. f4 {[%emt 0:00:00]} h6 {[%emt 0:01:48]} 14. Kh1 {[%emt 0:00:00]} f6 {[%emt 0:01:54]} 15. Bd2 {[%emt 0:00:00]} fxe5 {[%emt 0:00:20]} 16. fxe5 {[%emt 0:00:00]} Rxf1+ {[%emt 0:01:01]} 17. Rxf1 {[%emt 0:00:00]} Qe7 {[%emt 0:00:08]} 18. Bxh6 {[%emt 0:00:00]} Rf8 {[%emt 0:01:40]} 19. Rxf8+ {[%emt 0:00:00]} Nxf8 {[%emt 0:00:58]} 20. Bf4 {[%emt 0:00:00]} Qf7 {[%emt 0:00:01]} 21. Kg2 {[%emt 0:00:00]} Ng6 {[%emt 0:01:58]} 22. Bg3 {[%emt 0:00:00]} Bg5 {[%emt 0:00:03]} 23. Qf3 {[%emt 0:00:00]} Qc7 {[%emt 0:00:04]} 24. Qf2 {[%emt 0:00:00]} Qd8 {[%emt 0:03:00]} 25. Ng1 {[%emt 0:00:00]} Bh4 {[%emt 0:00:46]} 26. Bxh4 {[%emt 0:00:00]} Nxh4+ {[%emt 0:00:02]} 27. Kg3 {[%emt 0:00:00]} Qg5 {[%emt 0:00:26]} 28. Nh3 {[%emt 0:00:00]} Qe7 {[%emt 0:00:45]} 29. Nf4 {[%emt 0:00:00]} Kh7 {[%emt 0:00:30]} 30. Kh3 {[%emt 0:00:00]} Ng6 {[%emt 0:00:07]} 31. Nxg6 {[%emt 0:00:00]} Kxg6 {[%emt 0:00:13]} 32. Qh4 {[%emt 0:00:00]} Qg5 {[%emt 0:00:05]} 33. Qxg5+ Kxg5 {[%emt 0:00:00]} 34. Kg3 {[%emt 0:00:00]} Kh6 {[%emt 0:00:00]} 35. Kh4 {[%emt 0:00:00]} g5+ {[%emt 0:00:00]} 36. Kg3 {[%emt 0:00:00]} Kg6 {[%emt 0:00:00]} 37. h4 {[%emt 0:00:08]} Kh6 {[%emt 0:00:00]} 38. hxg5+ Kxg5 39. b4 {[%emt 0:00:48]} b6 {[%emt 0:00:09]} 40. Kh3 {[%emt 0:00:11]} a5 {[%emt 0:00:01]} 41. bxa5 {[%emt 0:00:06]} bxa5 {[%emt 0:00:02]} 42. a4 {[%emt 0:00:02]} 1-0

[Event "XVI Memorial Ezequiel Martin 2024"]
[Site "Mollet"]
[Date "2024.06.09"]
[Round "7.5"]
[White "Diaz Camallonga, Carles"]
[Black "Cruz, Filemon"]
[Result "1-0"]
[ECO "B41"]
[WhiteElo "2478"]
[BlackElo "2247"]
[Annotator "TA"]
[PlyCount "129"]
[EventDate "2024.06.01"]
[EventType "swiss"]
[EventCountry "ESP"]
[SourceTitle "playchess.com"]
[Source "ChessBase"]
[SourceQuality "1"]
[TimeControl "900+5"]

1. d4 {[%emt 0:00:02]} Nf6 {[%emt 0:00:02]} 2. Nf3 {[%emt 0:00:02]} e6 {[%emt 0:00:02]} 3. c4 {[%emt 0:00:01]} a6 {[%emt 0:00:02]} 4. Nc3 {[%emt 0:00:04]} c5 {[%emt 0:00:02]} 5. e4 {[%emt 0:00:35]} cxd4 {[%emt 0:00:03]} 6. Nxd4 {[%emt 0:00:02]} Qc7 {[%emt 0:00:02]} 7. a3 {[%emt 0:00:02]} Bc5 {[%emt 0:00:25] B41: Sicilian: Kan Variation: 5 c4.} 8. Be3 {[%emt 0:00:17]} d6 {[%emt 0:00:24]} 9. b4 {[%emt 0:01:30]} Bxd4 {[%emt 0:01:21]} 10. Bxd4 $146 {[%emt 0:00:01]} ({Predecessor:} 10. Qxd4 e5 11. Qd3 O-O 12. Be2 Be6 13. O-O Rc8 14. Nd5 Bxd5 15. cxd5 Nbd7 16. Rfc1 {1-0 Indjic,A (2613)-Nakamura,H (2775) Titled Tuesday intern op 27th Jun Early blitz 2023 (6)}) 10... Nc6 {[%emt 0:00:01]} 11. Be3 {[%emt 0:00:06]} Ne5 {[%emt 0:00:02]} 12. Rc1 {[%emt 0:00:09]} O-O {[%emt 0:00:28]} 13. f3 {[%emt 0:00:43]} Bd7 {[%emt 0:00:28]} 14. c5 {[%emt 0:01:09]} d5 {[%emt 0:00:16]} 15. Bg5 {[%emt 0:01:35]} Bc6 {[%emt 0:00:29]} 16. Bxf6 {[%emt 0:00:22]} gxf6 {[%emt 0:00:01]} 17. exd5 {[%emt 0:00:01]} exd5 {[%emt 0:00:07]} 18. Qd4 {[%emt 0:00:33]} Rfe8 {[%emt 0:00:20]} 19. Be2 {[%emt 0:00:44]} Ng6 {[%emt 0:00:12]} 20. Kf2 {[%emt 0:04:30]} (20. Qxf6 $2 Qf4 21. Qxf4 Nxf4 $19) (20. Nxd5 $2 Bxd5 21. Kf2 (21. Qxd5 $2 Rxe2+ 22. Kf1 Rd8 $19) 21... Rad8 22. Qxf6 Re6 $19) 20... Re5 {[%emt 0:01:53]} (20... Qe5 $1 $11 21. Rcd1 Nf4) 21. g3 $14 {[%emt 0:00:33]} Rae8 {[%emt 0:00:06]} 22. Bd3 {[%emt 0:00:12]} (22. f4 $16 Re3 23. Bd3) 22... Qe7 {[%emt 0:00:26]} 23. Rc2 {[%emt 0:03:14]} (23. f4 $1 $14) 23... Re3 {[%emt 0:02:03]} (23... f5 $11 {keeps the balance.}) 24. Re2 {[%emt 0:00:09]} Rxe2+ {[%emt 0:00:01]} 25. Bxe2 {[%emt 0:00:17]} Ne5 {[%emt 0:00:32]} (25... Kg7 $14) 26. f4 $2 {[%emt 0:00:04]} (26. Nxd5 $2 Bxd5 27. Rc1 (27. Qxd5 $2 Ng4+ 28. fxg4 Qxe2+ 29. Kg1 Qc2 $19) 27... Qe6 $19) (26. a4 $18) 26... Nc4 $1 $11 {[%emt 0:00:03]} 27. Bd3 {[%emt 0:00:06]} (27. Nxd5 Qxe2+ 28. Kg1 Bxd5 (28... Nxa3 $2 29. Nxf6+ Kf8 30. Nxh7+ Kg8 31. Nf6+ Kg7 32. Nxe8+ $19) 29. Qxd5 Ne3 (29... Nxa3 $2 30. h3 $19) (29... Qe1+ 30. Kg2 Ne3+ 31. Kh3 Qe2 32. Qd1 Nxd1 33. Re1 Qh5+ 34. Kg2 Rxe1 35. f5 Ne3+ 36. Kf2 Qe2#) 30. h3 Qf1+ (30... Nxd5 31. Rh2 Qd1+ 32. Kf2 Re2+ 33. Kf3 Re1+ 34. Kg2 Qe2#) 31. Kh2 Qf2+) 27... Ne3 {[%emt 0:00:45]} (27... Nxa3 $5 28. Ra1 (28. Nxd5 $2 Bxd5 29. Qxd5 Nc2 $19) 28... Nb5 29. Bxb5 axb5 $17 (29... Bxb5 30. Nxd5 Qe2+ 31. Kg1 $11)) 28. h3 $1 {[%emt 0:00:06]} Qe6 {[%emt 0:00:16]} 29. g4 {[%emt 0:00:11]} (29. Re1 $2 Ng4+ 30. Kf3 Nh2+ (30... Qxe1 $2 31. Kxg4 Re3 32. Ne2 $19) 31. Kg2 Qxe1 $19) 29... Nc4 {[%emt 0:00:28]} 30. Rd1 {[%emt 0:00:02]} Nb2 {[%emt 0:00:04]} (30... Nxa3 $5 31. Rg1 (31. Bf5 Qe7 $11) 31... Nc4 $17) 31. Rf1 {[%emt 0:00:11]} Nxd3+ {[%emt 0:00:26]} 32. Qxd3 {[%emt 0:00:01]} d4 {[%emt 0:00:00]} 33. Qxd4 {[%emt 0:00:02]} Qb3 {[%emt 0:00:02]} 34. Re1 {[%emt 0:00:02]} (34. Qxf6 $2 Qc2+ (34... Qxa3 35. Rb1 $11) 35. Kg3 Re3+ 36. Kh4 Qxc3 37. Qxc3 Rxc3 $19) 34... Qb2+ {[%emt 0:00:03]} 35. Re2 {[%emt 0:00:05]} Rxe2+ {[%emt 0:00:06]} 36. Nxe2 Qxa3 {[%emt 0:00:00]} 37. Qc3 {[%emt 0:00:08]} Qa2 {[%emt 0:00:05]} 38. Qxf6 {[%emt 0:00:13]} Qb3 $2 {[%emt 0:00:25][%mdl 8192]} (38... Bb5 $11 39. Qg5+ Kf8) 39. Qd8+ $18 {[%emt 0:00:03]} Kg7 {[%emt 0:00:01]} 40. Qd4+ $2 {[%emt 0:00:02]} (40. Nd4 $1 $18 {[%cal Rd4f5] White threatens Nf5+ and mate.} Qa2+ 41. Kg3 Qg2+ 42. Kh4) 40... Kg8 {[%emt 0:00:02]} 41. Nc3 $1 {[%emt 0:00:05]} Qc2+ {[%emt 0:00:06] [#]} (41... f6 $142 42. h4 (42. Qxf6 Qxb4 43. Qe6+ Kf8 $16) 42... Qc2+ 43. Ke1 Kf7) 42. Kg3 $1 $18 {[%emt 0:00:02]} Qc1 {[%emt 0:00:31]} 43. Qe5 $2 {[%emt 0:00:16]} ({White should play} 43. Qd8+ $18 Kg7 44. Qd4+ Kg8 45. Nd1) 43... Qb2 $2 {[%emt 0:00:09][%mdl 8192]} (43... f6 $1 $11 44. Qe6+ (44. Qxf6 $2 {leads to mate.} Qe1+ 45. Kh2 Qf2#) 44... Kg7) 44. Qd4 {[%emt 0:00:02]} Qc1 {[%emt 0:00:04]} 45. Qd8+ {[%emt 0:00:08]} Kg7 {[%emt 0:00:01]} 46. Qg5+ {[%emt 0:00:05]} Kf8 {[%emt 0:00:04] [#]} 47. Qd8+ $2 {[%emt 0:00:05]} ({White must play} 47. Qe5 $1 $18) 47... Kg7 $11 {[%emt 0:00:01]} 48. Qd4+ $2 {[%emt 0:00:01]} (48. Nd1 $11 Qa3+ 49. Kh4 Qxb4 50. Qg5+ Kf8 51. Qd8+ Kg7 52. Qg5+ Kf8 53. Qd8+ Kg7) 48... Kg8 $18 {[%emt 0:00:04]} 49. Kh4 $2 {[%emt 0:00:08]} ({Better is} 49. g5 $18) 49... Qe1+ $11 {[%emt 0:00:15]} 50. Kh5 {[%emt 0:00:01]} Qe6 $2 {[%emt 0:00:11][%mdl 8192]} (50... Qg3 $11 {and Black has nothing to worry.}) 51. f5 $18 {[%emt 0:00:02]} Qe7 $2 {[%emt 0:00:21]} (51... Qe8) 52. Nd5 $18 {[%emt 0:00:03]} Bxd5 {[%emt 0:00:01]} 53. Qxd5 {[%emt 0:00:01]} h6 {[%emt 0:00:06]} 54. h4 {[%emt 0:00:05]} (54. Kxh6 $2 Qh4#) 54... Kg7 {[%emt 0:02:18]} 55. Qd6 {[%emt 0:00:01]} Qe3 {[%emt 0:00:01]} 56. c6 {[%emt 0:00:15]} bxc6 {[%emt 0:00:01]} 57. Qxc6 {[%emt 0:00:01]} Qf4 {[%emt 0:01:08]} 58. Qxa6 {[%emt 0:00:05]} Qxb4 {[%emt 0:00:01]} 59. Qxh6+ {[%emt 0:00:06]} Kg8 {[%emt 0:00:01]} 60. Qf6 {[%emt 0:00:05]} Qb8 {[%emt 0:00:15]} 61. Qg5+ {[%emt 0:00:08]} Kf8 {[%emt 0:00:08]} 62. f6 {[%emt 0:00:10]} Qb3 {[%emt 0:00:01]} 63. Kh6 {[%emt 0:00:04]} Qc4 {[%emt 0:00:24]} 64. Kh7 {[%emt 0:00:03]} Qe6 {[%emt 0:01:17]} 65. Qg8# {[%emt 0:00:03]} 1-0

[Event "XVI Memorial Ezequiel Martin 2024"]
[Site "Mollet"]
[Date "2024.06.09"]
[Round "7.6"]
[White "Salinas Tomas, Daniel"]
[Black "Pinero Fernandez, Xavier"]
[Result "1-0"]
[ECO "E20"]
[WhiteElo "2355"]
[BlackElo "2264"]
[Annotator "RC"]
[PlyCount "71"]
[EventDate "2024.06.01"]
[EventType "swiss"]
[EventCountry "ESP"]
[SourceTitle "playchess.com"]
[Source "ChessBase"]
[SourceQuality "1"]
[TimeControl "900+5"]

1. d4 {[%emt 0:00:03]} Nf6 {[%emt 0:00:04]} 2. c4 {[%emt 0:00:02]} e6 {[%emt 0:00:02]} 3. g3 {[%emt 0:00:01]} Bb4+ {[%emt 0:00:14]} 4. Nc3 {[%emt 0:00:08]} O-O {[%emt 0:00:40]} 5. Bg2 {[%emt 0:00:02]} d6 {[%emt 0:00:19]} 6. Nf3 {[%emt 0:00:22]} Nc6 {[%emt 0:00:28]} 7. O-O {[%emt 0:00:09]} Bxc3 {[%emt 0:00:11]} 8. bxc3 {[%emt 0:00:02]} e5 {[%emt 0:00:38]} 9. e3 {[%emt 0:02:16]} Re8 {[%emt 0:00:54]} 10. Nd2 {[%emt 0:00:01]} Bd7 {[%emt 0:00:30]} 11. a4 {[%emt 0:00:37]} Qc8 {[%emt 0:00:13]} 12. Re1 {[%emt 0:00:19]} h5 {[%emt 0:01:10]} 13. Ba3 {[%emt 0:00:39]} h4 {[%emt 0:00:25]} 14. c5 {[%emt 0:01:17]} hxg3 {[%emt 0:00:22]} 15. hxg3 {[%emt 0:00:04]} dxc5 {[%emt 0:01:08]} 16. Bxc5 {[%emt 0:00:07]} e4 {[%emt 0:00:36]} 17. c4 {[%emt 0:01:18]} Bh3 {[%emt 0:00:22]} 18. Bh1 {[%emt 0:09:08]} b6 {[%emt 0:00:43]} 19. Ba3 {[%emt 0:00:00]} Bf5 {[%emt 0:00:15]} 20. Rc1 {[%emt 0:00:00]} Qd7 {[%emt 0:00:44]} 21. Bb2 {[%emt 0:00:15]} Nb4 {[%emt 0:06:52]} 22. d5 {[%emt 0:00:00]} Ng4 {[%emt 0:00:00]} 23. Rc3 {[%emt 0:00:00]} Qd6 {[%emt 0:00:00]} 24. Rb3 {[%emt 0:00:00]} Qh6 {[%emt 0:00:00]} 25. Bg2 {[%emt 0:00:00]} Qh2+ {[%emt 0:00:00]} 26. Kf1 {[%emt 0:00:00]} a5 {[%emt 0:00:00]} 27. f3 {[%emt 0:00:00]} exf3 {[%emt 0:00:00]} 28. Qxf3 {[%emt 0:00:00]} Qh5 {[%emt 0:00:00]} 29. Kg1 {[%emt 0:00:11]} Nd3 {[%emt 0:00:10]} 30. Rd1 {[%emt 0:00:18]} Rxe3 {[%emt 0:00:16]} 31. Bd4 {[%emt 0:00:14]} Rxf3 {[%emt 0:00:08]} 32. Nxf3 {[%emt 0:00:01]} Nde5 {[%emt 0:00:12]} 33. Bxe5 {[%emt 0:00:09]} Nxe5 {[%emt 0:00:02]} 34. Rc3 {[%emt 0:00:05]} Nxf3+ {[%emt 0:00:08]} 35. Bxf3 {[%emt 0:00:03]} Bg4 {[%emt 0:00:04]} 36. Rf1 {[%emt 0:00:08]} 1-0

[Event "XVI Memorial Ezequiel Martin 2024"]
[Site "Mollet"]
[Date "2024.06.09"]
[Round "8.1"]
[White "Ayats Llobera, Gerard"]
[Black "Garriga Cazorla, Pere"]
[Result "1-0"]
[ECO "B61"]
[WhiteElo "2466"]
[BlackElo "2471"]
[Annotator "TA"]
[PlyCount "65"]
[EventDate "2024.06.01"]
[EventType "swiss"]
[EventCountry "ESP"]
[SourceTitle "playchess.com"]
[Source "ChessBase"]
[SourceQuality "1"]
[TimeControl "900+5"]

{[%evp 13,65,43,46,31,33,14,14,0,0,0,0,0,24,33,38,37,44,40,54,16,34,0,82,73,77,68,88,77,80,6,18,30,28,35,32,41,28,0,100,110,160,131,420,404,470,344,393,406,410,412,410,398,352,-132]} 1. e4 {[%emt 0:00:02]} c5 {[%emt 0:00:02]} 2. Nf3 {[%emt 0:00:01][%cal Bg1f3,Bf3d4,Bd4f5,Bf5e3][%mdl 32]} d6 {[%emt 0:00:01]} 3. d4 {[%emt 0:00:02]} cxd4 4. Nxd4 {[%emt 0:00:01]} Nf6 {[%emt 0:00:02]} 5. Nc3 {[%emt 0:00:01]} Nc6 {[%emt 0:00:01]} 6. Bg5 {[%emt 0:00:02]} Bd7 {[%emt 0:00:02]} 7. Qd2 {[%emt 0:00:19]} a6 {[%emt 0:00:02]} 8. Bxf6 {[%emt 0:00:09]} gxf6 {[%emt 0:00:04]} 9. Nf5 {[%emt 0:00:03]} Qa5 {[%emt 0:00:34]} 10. Bd3 {[%emt 0:01:52] The position is equal.} e6 {[%emt 0:00:16]} 11. Ne3 {[%emt 0:00:32]} Rg8 {[%emt 0:00:02]} 12. O-O-O {[%emt 0:00:10]} b5 {[%emt 0:01:00][%cal Bb7b5,Bb5b4][%mdl 32]} 13. Kb1 $1 {[%emt 0:00:04]} b4 {[%emt 0:00:38]} 14. Ne2 {[%emt 0:00:01]} Qc5 {[%emt 0:00:02]} 15. f4 {[%emt 0:00:19]} a5 {[%emt 0:00:17][%cal Ba6a5,Ba5a4,Ba4b3][%mdl 32]} 16. Rhf1 {[%emt 0:00:04]} a4 {[%emt 0:00:04]} 17. f5 {[%emt 0:00:45]} Be7 {[%emt 0:00:19] [#]} (17... Bh6 $11 18. Nf4 Ne5) 18. Nf4 $1 $16 {[%emt 0:12:08]} Ne5 {[%emt 0:13:09]} 19. Be2 {[%emt 0:00:00]} b3 {[%emt 0:00:05]} 20. cxb3 {[%emt 0:00:00]} ({Of course not} 20. axb3 axb3 21. cxb3 Qa7 $11) 20... axb3 {[%emt 0:00:00] [#] ...Bc6 is the strong threat.} 21. a3 {[%emt 0:00:00]} ({But not} 21. axb3 Qa7 $14) (21. Rc1 $1 $16 {[%cal Rc1c5]} bxa2+ 22. Ka1) 21... Bc6 {[%emt 0:00:00]} 22. Bf3 {[%emt 0:00:00]} Kd7 {[%emt 0:00:00]} 23. Rc1 {[%emt 0:00:25]} Qb5 {[%emt 0:00:00]} 24. Rc3 {[%emt 0:00:00]} Rgc8 {[%emt 0:00:00]} 25. Rfc1 {[%emt 0:00:00][%cal Bf1c1,Bc1c3,Bc3b3][%mdl 32] aiming for Qd1.} Bb7 {[%emt 0:00:00]} (25... Qb7 $1 $11) 26. Qd1 {[%emt 0:00:00] Hoping for fxe6+. Some like it hot} Rxc3 {[%emt 0:00:00]} ({Black should play} 26... Qa4) 27. Rxc3 {[%emt 0:00:00]} Rc8 $2 {[%emt 0:00:40][%mdl 8192] A mistake that costs the game.} (27... Qa4 $16) 28. Rxb3 $18 {[%emt 0:00:00]} Qa6 {[%emt 0:00:00]} 29. Ka1 {[%emt 0:00:30] Black must now prevent fxe6+.} Bc6 {[%emt 0:00:00]} 30. fxe6+ {[%emt 0:00:00] White is winning.} fxe6 {[%emt 0:00:00]} 31. Bg4 {[%emt 0:00:00]} f5 {[%emt 0:00:02]} 32. exf5 {[%emt 0:00:00] Strongly threatening f6.} Ba4 {[%emt 0:00:23]} 33. f6 $2 {[%emt 0:00:00][%mdl 32768] Weighted Error Value: White=0.16 (very precise) /Black=0.38.  Loses game:     	---       	Black=1      Missed win:     	White=1     	---        Mistake:       	White=1     	Black=3      Inaccurate:     	White=3     	---        OK:         	White=10    	Black=8      Best:        	---       	Black=3      Strong:       	White=2     	---       . Loss on time!?} (33. fxe6+ Kd8 34. Be2 Qa8 $18) (33. Bh3 $18 Ke8 34. Qh5+ Kd7 35. Rb4 (35. fxe6+ Kd8 $18) 35... Rc1+ 36. Ka2) 1-0

[Event "XVI Memorial Ezequiel Martin 2024"]
[Site "Mollet"]
[Date "2024.06.09"]
[Round "8.2"]
[White "Lazaro Pujol, Abel"]
[Black "Narciso Dublan, Marc"]
[Result "0-1"]
[ECO "C41"]
[WhiteElo "2356"]
[BlackElo "2432"]
[Annotator "RC"]
[PlyCount "56"]
[EventDate "2024.06.01"]
[EventType "swiss"]
[EventCountry "ESP"]
[SourceTitle "playchess.com"]
[Source "ChessBase"]
[SourceQuality "1"]
[TimeControl "900+5"]

1. e4 {[%emt 0:00:03]} d6 {[%emt 0:00:01]} 2. d4 {[%emt 0:00:02]} Nf6 {[%emt 0:00:01]} 3. Nc3 {[%emt 0:00:01]} e5 {[%emt 0:00:02]} 4. Nf3 {[%emt 0:00:14]} Nbd7 {[%emt 0:00:01]} 5. Bc4 {[%emt 0:00:12]} Be7 {[%emt 0:00:02]} 6. O-O {[%emt 0:00:03]} O-O {[%emt 0:00:03]} 7. Re1 {[%emt 0:00:02]} c6 {[%emt 0:00:04]} 8. a4 {[%emt 0:00:02]} h6 {[%emt 0:00:08]} 9. h3 {[%emt 0:00:31]} Re8 {[%emt 0:00:04]} 10. b3 {[%emt 0:00:54]} exd4 {[%emt 0:00:09]} 11. Nxd4 {[%emt 0:00:18]} Ne5 {[%emt 0:00:03]} 12. Bf1 {[%emt 0:00:18]} Ng6 {[%emt 0:00:33]} 13. a5 {[%emt 0:00:38]} Bd7 {[%emt 0:00:40]} 14. Bb2 {[%emt 0:00:26]} b5 {[%emt 0:00:32]} 15. axb6 {[%emt 0:04:03]} axb6 {[%emt 0:00:02]} 16. Qf3 {[%emt 0:00:22]} Rxa1 {[%emt 0:02:12]} 17. Rxa1 {[%emt 0:00:49]} Bf8 {[%emt 0:02:03]} 18. Re1 {[%emt 0:03:32]} d5 {[%emt 0:00:41]} 19. Bd3 {[%emt 0:01:43]} c5 {[%emt 0:02:49]} 20. Nde2 {[%emt 0:00:34]} Ne5 {[%emt 0:03:11]} 21. Qf4 {[%emt 0:00:45]} c4 {[%emt 0:00:25]} 22. bxc4 {[%emt 0:01:11]} dxc4 {[%emt 0:00:02]} 23. Qd2 {[%emt 0:00:09]} cxd3 {[%emt 0:00:12]} 24. cxd3 {[%emt 0:00:01]} Bxh3 {[%emt 0:00:34]} 25. Nf4 {[%emt 0:00:03]} Bc8 {[%emt 0:00:41]} 26. Ncd5 {[%emt 0:00:04]} Nxd5 {[%emt 0:00:02]} 27. Nxd5 {[%emt 0:00:02]} Bb7 {[%emt 0:00:05]} 28. Nf4 {[%emt 0:00:16]} Nc4 {[%emt 0:00:13]} 0-1

[Event "XVI Memorial Ezequiel Martin 2024"]
[Site "Mollet"]
[Date "2024.06.09"]
[Round "8.3"]
[White "Aloma Vidal, Robert"]
[Black "Diaz Camallonga, Carles"]
[Result "1-0"]
[ECO "A13"]
[WhiteElo "2428"]
[BlackElo "2478"]
[Annotator "TA"]
[PlyCount "123"]
[EventDate "2024.06.01"]
[EventType "swiss"]
[EventCountry "ESP"]
[SourceTitle "playchess.com"]
[Source "ChessBase"]
[SourceQuality "1"]
[TimeControl "900+5"]

{[%evp 31,123,0,0,-25,29,22,20,3,32,39,31,33,20,20,46,35,40,47,50,47,36,37,43,44,138,135,147,134,196,202,215,228,227,237,229,188,200,200,194,186,230,213,217,203,230,227,231,195,248,248,238,231,254,251,252,208,276,267,290,270,405,397,382,377,747,747,741,705,1829,1780,2234,1610,1514,1787,2492,2254,5397,6410,29966,29967,12841,6410,29980,29981,29983,29984,29984,29985,29986,29987,29988,29989,29989,29990]} 1. Nf3 {[%emt 0:00:03]} Nf6 {[%emt 0:00:01]} 2. g3 {[%emt 0:00:02]} b5 {[%emt 0:00:11]} 3. Na3 {[%emt 0:00:11]} a6 {[%emt 0:00:03]} 4. c4 {[%emt 0:00:05]} e6 {[%emt 0:00:03]} 5. b3 {[%emt 0:00:16]} Bb7 {[%emt 0:00:37]} 6. Bg2 {[%emt 0:00:03]} Be7 {[%emt 0:00:06]} 7. O-O {[%emt 0:00:05]} bxc4 {[%emt 0:00:31]} 8. Nxc4 {[%emt 0:00:08]} c5 {[%emt 0:00:04]} 9. Bb2 {[%emt 0:00:57]} O-O {[%emt 0:00:04]} 10. Rc1 {[%emt 0:00:03] A13: English Opening: 1...e6.} d5 {[%emt 0:03:23]} 11. Nce5 {[%emt 0:00:34]} Nbd7 {[%emt 0:01:11]} 12. d4 {[%emt 0:00:25]} Rc8 {[%emt 0:00:58]} 13. Nxd7 $146 {[%emt 0:00:52]} ({Predecessor:} 13. Rc2) 13... Nxd7 {[%emt 0:00:02]} 14. dxc5 {[%emt 0:00:20]} Bxc5 {[%emt 0:00:27]} 15. b4 {[%emt 0:01:56]} Be7 {[%emt 0:00:56]} 16. Qd3 {[%emt 0:01:21]} Qb6 {[%emt 0:01:41]} (16... Bxb4 $2 17. Qd4 e5 18. Qxb4 $18) 17. a3 {[%emt 0:00:15]} Bf6 {[%emt 0:00:32]} (17... a5 $142) 18. Bxf6 $11 {[%emt 0:00:40]} Nxf6 {[%emt 0:00:01]} 19. Ne5 {[%emt 0:00:15]} Rc7 {[%emt 0:02:12]} 20. Rxc7 {[%emt 0:00:50]} Qxc7 {[%emt 0:00:02]} 21. Qd4 {[%emt 0:00:06]} Rc8 {[%emt 0:01:34]} 22. Nd3 {[%emt 0:00:04]} Nd7 {[%emt 0:00:47]} 23. Rc1 {[%emt 0:01:59]} Qb6 {[%emt 0:00:03]} 24. Rxc8+ {[%emt 0:00:29]} Bxc8 {[%emt 0:00:01]} 25. Qc3 {[%emt 0:01:26]} Bb7 {[%emt 0:00:01]} 26. e3 {[%emt 0:00:05]} Qc6 {[%emt 0:00:36]} 27. Qd4 {[%emt 0:01:55]} Qb6 {[%emt 0:00:29]} ({Black should play} 27... Kf8 $14) 28. Qxb6 $1 $16 {[%emt 0:00:11]} Nxb6 {[%emt 0:00:02]} 29. Nc5 {[%emt 0:00:02]} Bc8 {[%emt 0:00:01]} (29... Bc6 $16) 30. Bf1 $18 {[%emt 0:00:06]} Nc4 {[%emt 0:00:08]} 31. Bxc4 {[%emt 0:00:06]} dxc4 {[%emt 0:00:01] [#]} 32. Kf1 $1 {[%emt 0:00:01]} Kf8 {[%emt 0:00:20]} 33. Ke2 {[%emt 0:00:01]} Ke7 {[%emt 0:00:06]} 34. Kd2 {[%emt 0:00:01]} Kd6 {[%emt 0:00:14]} 35. Kc3 {[%emt 0:00:01]} Kd5 {[%emt 0:00:05]} 36. e4+ {[%emt 0:02:11]} Kd6 37. Kxc4 {[%emt 0:00:00]} e5 {[%emt 0:00:03]} 38. a4 {[%emt 0:00:00]} Bh3 {[%emt 0:00:07]} 39. Kc3 {[%emt 0:00:00]} (39. Nxa6 $2 {is the wrong capture.} Bf1+ 40. Kc3 Bxa6 $19) 39... Bf1 {[%emt 0:00:03]} 40. Nb3 {[%emt 0:00:00]} f6 {[%emt 0:00:06]} 41. Nd2 {[%emt 0:00:00]} Bh3 {[%emt 0:00:01] [#]} 42. Nc4+ $1 {[%emt 0:00:00]} Kc6 {[%emt 0:00:01]} 43. Ne3 {[%emt 0:00:00]} Be6 {[%emt 0:00:03]} 44. Nf5 {[%emt 0:00:00]} g6 {[%emt 0:00:05]} 45. Ne3 {[%emt 0:00:00]} h5 {[%emt 0:00:11]} (45... Kd6 $142 46. g4 Bd7) 46. f4 $18 {[%emt 0:00:00]} exf4 {[%emt 0:00:11]} 47. gxf4 {[%emt 0:00:00]} Bh3 $2 {[%emt 0:00:02]} (47... Kb7 48. Kd4 Bf7) 48. Kd4 $18 {[%emt 0:00:00]} Kd6 {[%emt 0:00:12]} 49. Nd5 {[%emt 0:00:00]} g5 {[%emt 0:00:15]} 50. Nxf6 {[%emt 0:00:00]} gxf4 {[%emt 0:00:01]} 51. Nxh5 {[%emt 0:00:00]} f3 {[%emt 0:00:02]} 52. e5+ {[%emt 0:00:32]} Kc6 {[%emt 0:00:07]} 53. Ke3 {[%emt 0:00:02]} Be6 {[%emt 0:00:07]} 54. Ng7 {[%emt 0:00:11]} Bb3 {[%emt 0:00:11]} 55. e6 {[%emt 0:00:20]} Kd6 {[%emt 0:00:04]} 56. b5 {[%emt 0:00:02]} axb5 {[%emt 0:00:01]} 57. axb5 {[%emt 0:00:01]} (57. Kxf3 bxa4 (57... Bxa4 58. Ke4 $11) 58. e7 Kxe7 59. Nf5+ Kf6 $19) 57... Bd5 {[%emt 0:00:02]} 58. h4 {[%emt 0:00:09]} Ke7 {[%emt 0:00:04]} 59. h5 {[%emt 0:00:01]} Kf6 {[%emt 0:00:02]} 60. h6 {[%emt 0:00:02]} Bb7 {[%emt 0:00:08]} 61. h7 {[%emt 0:00:14]} Kxg7 {[%emt 0:00:01]} 62. e7 {[%emt 0:00:36]} 1-0